bitfinex/quotes_BTCUSD_20260215
["timestamp","ask_amount","ask_price","bid_price","bid_amount"]
[1771189913585,0.50838658,68780.0,68769.0,0.1346695]
[1771189913784,0.04652026,68785.0,68769.0,0.1346695]
[1771189914587,0.0004,68786.0,68769.0,0.1346695]
[1771189915404,0.0004,68786.0,68769.0,0.04622772]
[1771189915633,0.0004,68786.0,68770.0,0.1346695]
[1771189916903,0.04692026,68786.0,68770.0,0.1346695]
[1771189917329,0.0004,68786.0,68771.0,0.04622772]
[1771189917526,0.0004,68786.0,68773.0,0.04622772]
[1771189917854,0.0004,68785.0,68774.0,0.1346695]
[1771189919320,0.04692026,68785.0,68769.0,0.1346695]
[1771189920864,0.50838658,68780.0,68769.0,0.1346695]
[1771189922645,0.50838658,68780.0,68765.0,0.0001574]
[1771189923008,0.50838658,68780.0,68765.0,0.1348269]
[1771189923009,0.04652026,68779.0,68765.0,0.1348269]
[1771189923827,0.50838658,68780.0,68765.0,0.1348269]
[1771189925421,0.04652026,68783.0,68765.0,0.1348269]
[1771189925750,0.0004,68785.0,68767.0,0.1346695]
[1771189926364,0.26912,68784.0,68767.0,0.1346695]
[1771189927348,0.26912,68784.0,68771.0,0.1346695]
[1771189928000,0.0004,68785.0,68771.0,0.1346695]
[1771189928198,0.0004,68785.0,68773.0,0.1346695]
[1771189928467,0.0004,68785.0,68774.0,0.1346695]
[1771189928865,0.0004,68786.0,68776.0,0.1346695]
[1771189930362,0.0004,68786.0,68771.0,0.1346695]
[1771189930363,0.04692026,68786.0,68771.0,0.1346695]
[1771189932607,0.0004,68786.0,68771.0,0.1346695]
[1771189932963,0.00052868,68790.0,68779.0,0.04622772]
[1771189933147,0.00052868,68790.0,68781.0,0.1346695]
[1771189934946,0.0004,68786.0,68781.0,0.1346695]
[1771189935105,0.0004,68786.0,68782.0,0.1346695]
[1771189935304,0.0004,68786.0,68783.0,0.1346695]
[1771189935502,0.0004,68786.0,68785.0,0.1346695]
[1771189937127,0.0004,68786.0,68785.0,0.1823558]
[1771189938143,0.01550069,68800.0,68779.0,0.30552]
[1771189938339,0.01550069,68800.0,68792.0,0.1346695]
[1771189938340,0.00052868,68799.0,68792.0,0.1346695]
[1771189938541,0.01550069,68800.0,68793.0,0.1346695]
[1771189939717,0.01550069,68800.0,68793.0,0.0476863]
[1771189939922,0.01550069,68800.0,68794.0,0.1346695]
[1771189940142,0.0001438,68801.0,68793.0,0.0476863]
[1771189940343,0.0001438,68801.0,68795.0,0.1346695]
[1771189941641,0.0001438,68801.0,68790.0,0.64240222]
[1771189941843,0.0001438,68801.0,68791.0,0.1346695]
[1771189942391,0.0001438,68801.0,68793.0,0.1346695]
[1771189942747,0.0004,68800.0,68793.0,0.1346695]
[1771189942942,0.0004,68800.0,68793.0,0.1823558]
[1771189943144,0.0004,68800.0,68794.0,0.1346695]
[1771189949371,0.0004,68800.0,68790.0,0.50773272]
[1771189949901,0.04691302,68799.0,68790.0,0.50773272]
[1771189950458,0.04691302,68799.0,68789.0,0.306]
[1771189950681,0.04691302,68799.0,68787.0,0.0002]
[1771189951470,0.04691302,68799.0,68780.0,0.0002]
[1771189951922,0.04691302,68799.0,68780.0,0.50793272]
[1771189952118,0.07002,68799.0,68780.0,0.50793272]
[1771189952420,0.04691302,68798.0,68780.0,0.50793272]
[1771189955136,0.07002,68799.0,68780.0,0.50793272]
[1771189955398,0.07002,68799.0,68784.0,0.1346695]
[1771189955784,0.001,68798.0,68784.0,0.1346695]
[1771189957380,0.26736,68800.0,68784.0,0.1346695]
[1771189958003,0.0004,68800.0,68784.0,0.1346695]
[1771189958206,0.0004,68800.0,68787.0,0.0476863]
[1771189958402,0.0004,68800.0,68790.0,0.64240222]
[1771189958686,0.0004,68800.0,68790.0,0.64225582]
[1771189959080,0.0004,68800.0,68790.0,0.1346695]
[1771189959572,0.0004,68800.0,68791.0,0.1346695]
[1771189959748,0.0004,68800.0,68792.0,0.1346695]
[1771189959966,0.0004,68800.0,68784.0,0.30528]
[1771189960167,0.0004,68800.0,68785.0,0.1346695]
[1771189960576,0.50813272,68800.0,68785.0,0.1346695]
[1771189960776,0.0004,68800.0,68790.0,0.50773272]
[1771189962691,0.0004,68800.0,68790.0,0.64240222]
[1771189963096,0.0004,68800.0,68790.0,0.50773272]
[1771189963297,0.0001438,68801.0,68790.0,0.50773272]
[1771189963298,0.0001438,68801.0,68797.0,0.1346695]
[1771189964786,0.0001438,68801.0,68790.0,0.64240222]
[1771189965141,0.0001438,68801.0,68791.0,0.1346695]
[1771189965351,0.0001438,68801.0,68792.0,0.04456401]
[1771189965529,0.0001438,68801.0,68793.0,0.04456401]
[1771189965733,0.0001438,68801.0,68795.0,0.1346695]
[1771189966198,0.0004,68800.0,68797.0,0.04456401]
[1771189966400,0.0004,68800.0,68798.0,0.1346695]
[1771189969083,0.0008086,68800.0,68798.0,0.1346695]
[1771189973149,0.0008086,68800.0,68790.0,0.50793272]
[1771189973150,0.0001232,68816.0,68799.0,0.30976]
[1771189973315,0.0001232,68816.0,68792.0,0.06142594]
[1771189973316,0.0001232,68816.0,68801.0,0.1346695]
[1771189974320,0.0001232,68816.0,68806.0,0.50773272]
[1771189974521,0.00055197,68816.0,68808.0,0.1346695]
[1771189974723,0.00055197,68816.0,68800.0,0.81749272]
[1771189975079,0.00055197,68816.0,68801.0,0.04456401]
[1771189975279,0.00055197,68816.0,68806.0,0.50773272]
[1771189975280,0.00095197,68816.0,68806.0,0.50773272]
[1771189975500,0.00095197,68816.0,68809.0,0.1346695]
[1771189975948,0.00095197,68816.0,68810.0,0.1346695]
[1771189976439,0.00095197,68816.0,68810.0,0.04456401]
[1771189976650,0.00095197,68816.0,68811.0,0.04456401]
[1771189976878,0.00095197,68816.0,68806.0,0.50773272]
[1771189977127,0.00095197,68816.0,68809.0,0.1346695]
[1771189977307,0.002,68822.0,68810.0,0.50773272]
[1771189977517,0.00212858,68822.0,68810.0,0.50773272]
[1771189977735,0.00212858,68822.0,68812.0,0.1346695]
[1771189977988,0.00212858,68822.0,68810.0,0.50773272]
[1771189978216,0.00212858,68822.0,68811.0,0.1346695]
[1771189980378,0.00212858,68822.0,68808.0,0.31048]
[1771189981046,0.04941837,68819.0,68800.0,0.50773272]
[1771189981464,0.26496,68820.0,68803.0,0.1346695]
[1771189981663,0.26496,68820.0,68803.0,0.04456401]
[1771189981862,0.26496,68820.0,68804.0,0.1346695]
[1771189982240,0.00212858,68822.0,68804.0,0.1346695]
[1771189982448,0.00212858,68822.0,68806.0,0.04456401]
[1771189982738,0.00212858,68822.0,68807.0,0.1345233]
[1771189982912,0.00212858,68822.0,68807.0,0.1343771]
[1771189983332,0.04941837,68819.0,68796.0,0.31084]
[1771189983551,0.07002,68818.0,68796.0,0.31084]
[1771189983757,0.04941837,68809.0,68798.0,0.0002]
[1771189984149,0.0701432,68818.0,68799.0,0.50773272]
[1771189984347,0.3349832,68818.0,68801.0,0.1345233]
[1771189984808,0.0701432,68818.0,68801.0,0.1345233]
[1771189985060,0.07002,68818.0,68803.0,0.04456401]
[1771189985274,0.07002,68818.0,68804.0,0.1345233]
[1771189985893,0.07102,68818.0,68804.0,0.1345233]
[1771189986100,0.07102,68818.0,68804.0,0.1346362]
[1771189986509,0.07002,68818.0,68804.0,0.0001129]
[1771189986683,0.04941837,68817.0,68799.0,0.50773272]
[1771189986862,0.04941837,68817.0,68798.0,0.0002]
[1771189987063,0.04941837,68809.0,68798.0,0.0002]
[1771189988139,0.26512,68808.0,68798.0,0.0002]
[1771189989144,0.31453837,68808.0,68798.0,0.0002]
[1771189989345,0.26512,68808.0,68798.0,0.0002]
[1771189991063,0.26548,68808.0,68798.0,0.1347233]
[1771189993286,0.04981837,68814.0,68798.0,0.1347233]
[1771189994292,0.0004,68814.0,68798.0,0.1347233]
[1771189994737,0.04537861,68814.0,68798.0,0.1347233]
[1771189995221,0.04497861,68809.0,68798.0,0.0002]
[1771189996794,0.04497861,68809.0,68798.0,0.00024]
[1771189997179,0.50773272,68810.0,68798.0,0.00024]
[1771189997315,0.04537861,68814.0,68798.0,0.00024]
[1771189997524,0.07002,68813.0,68798.0,0.00024]
[1771189997744,0.11499861,68813.0,68798.0,0.00024]
[1771189997942,0.04497861,68812.0,68798.0,0.00024]
[1771189998171,0.04497861,68812.0,68793.0,0.0001867]
[1771189998172,0.04497861,68809.0,68793.0,0.0001867]
[1771189998981,0.04497861,68808.0,68793.0,0.0001867]
[1771189999175,0.04497861,68806.0,68793.0,0.0001867]
[1771190002558,0.07002,68809.0,68793.0,0.0003867]
[1771190002760,0.26636,68805.0,68793.0,0.13491]
[1771190004726,0.001,68809.0,68793.0,0.13491]
[1771190004925,0.2666,68805.0,68793.0,0.04838597]
[1771190005128,0.2666,68805.0,68794.0,0.1345233]
[1771190007296,0.2666,68805.0,68794.0,0.04600973]
[1771190007526,0.2666,68805.0,68797.0,0.1345233]
[1771190010170,0.2666,68805.0,68793.0,0.0003867]
[1771190010171,0.2666,68805.0,68799.0,0.1345233]
[1771190010626,0.04868759,68816.0,68799.0,0.1345233]
[1771190010927,0.00212858,68822.0,68799.0,0.1345233]
[1771190010928,0.26688,68812.0,68799.0,0.1345233]
[1771190011494,0.0004,68806.0,68799.0,0.1345233]
[1771190017812,0.26688,68812.0,68797.0,0.04600973]
[1771190018143,0.26688,68812.0,68800.0,0.50775171]
[1771190018318,0.26688,68812.0,68802.0,0.1345233]
[1771190018718,0.26688,68812.0,68804.0,0.1345233]
[1771190019157,0.26688,68812.0,68798.0,0.04600973]
[1771190019357,0.26688,68812.0,68798.0,0.18053303]
[1771190019589,0.26688,68812.0,68799.0,0.1345233]
[1771190019905,0.04868759,68817.0,68799.0,0.1345233]
[1771190020315,0.04868759,68817.0,68799.0,0.1347233]
[1771190020561,0.00212858,68822.0,68800.0,0.50775171]
[1771190020761,0.0004,68812.0,68802.0,0.04600973]
[1771190020937,0.0004,68812.0,68803.0,0.1345233]
[1771190021962,0.0004,68812.0,68799.0,0.0002]
[1771190022164,0.04868759,68811.0,68799.0,0.0002]
[1771190026045,0.0004,68812.0,68799.0,0.0002]
[1771190028859,0.0004,68812.0,68801.0,0.1345233]
[1771190032525,0.0004,68812.0,68799.0,0.0002]
[1771190033551,0.0004,68812.0,68800.0,0.1345233]
[1771190035815,0.0004,68812.0,68793.0,0.0003867]
[1771190035816,0.04664553,68809.0,68793.0,0.0003867]
[1771190035972,0.04664553,68807.0,68793.0,0.0003867]
[1771190036596,0.04664553,68807.0,68799.0,0.0002]
[1771190037653,0.04664553,68807.0,68793.0,0.0003867]
[1771190037802,0.04664553,68807.0,68790.0,0.0002]
[1771190037803,0.04664553,68802.0,68790.0,0.0002]
[1771190039450,0.04664553,68802.0,68785.0,0.0002]
[1771190039748,0.07002,68806.0,68786.0,0.1347233]
[1771190039749,0.04664553,68804.0,68786.0,0.1347233]
[1771190040326,0.50775171,68800.0,68786.0,0.1347233]
[1771190040776,0.001,68802.0,68787.0,0.0481868]
[1771190041073,0.26692,68800.0,68789.0,0.1345233]
[1771190041503,0.26701341,68800.0,68789.0,0.1345233]
[1771190043776,0.26701341,68800.0,68791.0,0.1345233]
[1771190044555,9.341e-05,68800.0,68792.0,0.0481868]
[1771190044706,9.341e-05,68800.0,68793.0,0.0481868]
[1771190044905,9.341e-05,68800.0,68794.0,0.1345233]
[1771190046465,0.26692,68804.0,68795.0,0.0481868]
[1771190046670,0.26692,68804.0,68797.0,0.1345233]
[1771190046896,0.26704,68807.0,68797.0,0.1345233]
[1771190049374,0.26704,68807.0,68797.0,0.50775171]
[1771190049581,0.26704,68807.0,68800.0,0.1345233]
[1771190049787,0.2674,68812.0,68801.0,0.1345233]
[1771190049977,0.0004,68812.0,68802.0,0.0481868]
[1771190050275,0.0004,68812.0,68803.0,0.1345233]
[1771190052351,0.0004,68812.0,68804.0,0.0481868]
[1771190052632,0.0004,68812.0,68805.0,0.1345233]
[1771190053382,0.2672,68817.0,68808.0,0.04472309]
[1771190053603,0.2672,68817.0,68810.0,0.1345233]
[1771190054392,0.2672,68817.0,68811.0,0.1345233]
[1771190054669,0.0004,68812.0,68811.0,0.17924639]
[1771190055263,0.0932012,68823.0,68801.0,0.0002]
[1771190055264,8.12e-05,68823.0,68801.0,0.0002]
[1771190055463,8.12e-05,68823.0,68812.0,0.1345233]
[1771190055664,8.12e-05,68823.0,68813.0,0.1345233]
[1771190056448,8.12e-05,68823.0,68814.0,0.1345233]
[1771190058712,8.12e-05,68823.0,68804.0,0.1345233]
[1771190059040,0.50775171,68820.0,68804.0,0.1345233]
[1771190059245,0.50775171,68820.0,68804.0,0.04472309]
[1771190059569,0.50775171,68820.0,68805.0,0.1345233]
[1771190060168,8.12e-05,68823.0,68806.0,0.04472309]
[1771190060368,8.12e-05,68823.0,68810.0,0.50775171]
[1771190060521,8.12e-05,68823.0,68812.0,0.04472309]
[1771190060736,8.12e-05,68823.0,68813.0,0.1345233]
[1771190060737,0.2676412,68823.0,68813.0,0.1345233]
[1771190061829,0.0024,68822.0,68807.0,0.1345233]
[1771190064479,0.0024,68822.0,68807.0,0.04472309]
[1771190064663,0.0024,68822.0,68808.0,0.1345233]
[1771190065069,0.0024,68822.0,68802.0,0.1345233]
[1771190065225,0.0024,68822.0,68801.0,0.0002]
[1771190065226,0.0024,68822.0,68805.0,0.04472309]
[1771190065566,0.0024,68822.0,68808.0,0.1345233]
[1771190065718,0.0024,68822.0,68809.0,0.1345233]
[1771190065923,0.0024,68822.0,68810.0,0.04472309]
[1771190066116,0.0024,68822.0,68811.0,0.1345233]
[1771190068485,0.0024,68822.0,68813.0,0.1345233]
[1771190072093,0.14845298,68823.0,68811.0,0.1345233]
[1771190074072,0.14845298,68823.0,68811.0,0.1343774]
[1771190076994,0.14845298,68823.0,68811.0,0.1345774]
[1771190077229,0.14845298,68823.0,68802.0,0.0001528]
[1771190077230,0.04807482,68820.0,68802.0,0.13460315]
[1771190077422,0.04807482,68820.0,68802.0,0.0001528]
[1771190077650,0.04807482,68820.0,68804.0,0.0002]
[1771190079941,0.04807482,68813.0,68802.0,0.0001528]
[1771190080151,0.04807482,68811.0,68802.0,0.0001528]
[1771190081351,0.04807482,68811.0,68801.0,0.0002]
[1771190081554,0.04807482,68811.0,68793.0,0.13460315]
[1771190081775,0.04807482,68809.0,68793.0,0.13460315]
[1771190085256,0.55262157,68805.0,68793.0,0.0001528]
[1771190085463,0.31425111,68804.0,68793.0,0.0001528]
[1771190085899,0.04513111,68803.0,68789.0,0.0002]
[1771190086114,0.50749046,68800.0,68789.0,0.0002]
[1771190087876,0.55262157,68800.0,68789.0,0.0002]
[1771190088046,0.50749046,68800.0,68789.0,0.0002]
[1771190088246,0.55262157,68800.0,68789.0,0.0002]
[1771190088614,0.04513111,68799.0,68789.0,0.0002]
[1771190090085,0.04513111,68797.0,68788.0,0.0002]
[1771190090340,0.26968,68796.0,68788.0,0.0002]
[1771190092729,0.04513111,68795.0,68788.0,0.0002]
[1771190095465,0.26968,68796.0,68788.0,0.0002]
[1771190098535,0.04513111,68795.0,68786.0,0.0002]
[1771190098737,0.50749046,68792.0,68782.0,7.999e-05]
[1771190098970,0.04513111,68795.0,68782.0,7.999e-05]
[1771190099169,0.26968,68796.0,68782.0,0.13453034]
[1771190100131,0.26968,68796.0,68782.0,0.13472624]
[1771190104532,0.50749046,68792.0,68782.0,0.13472624]
[1771190107056,0.50749046,68792.0,68782.0,0.00027589]
[1771190107268,0.50749046,68792.0,68780.0,0.0002]
[1771190107477,0.50749046,68792.0,68781.0,3.5e-05]
[1771190107685,0.50749046,68792.0,68782.0,0.13445035]
[1771190108089,0.50749046,68792.0,68782.0,0.13465035]
[1771190112202,0.50749046,68792.0,68782.0,0.12965035]
[1771190112719,0.50749046,68792.0,68782.0,0.0002]
[1771190114503,0.27008,68796.0,68782.0,0.0002]
[1771190114706,0.50749046,68792.0,68782.0,0.0002]
[1771190116416,0.04704905,68791.0,68781.0,3.5e-05]
[1771190116631,0.50749046,68792.0,68766.0,0.0003601]
[1771190116632,0.04704905,68789.0,68766.0,0.0003601]
[1771190116846,0.04704905,68789.0,68759.0,0.0002]
[1771190116847,0.04704905,68774.0,68759.0,0.0002]
[1771190117053,0.50749046,68769.0,68759.0,0.0002]
[1771190117471,0.50749046,68769.0,68751.0,0.13195035]
[1771190117472,0.50749046,68761.0,68751.0,0.13195035]
[1771190117707,0.27404,68760.0,68751.0,0.13195035]
[1771190118075,0.27404,68760.0,68751.0,0.13204376]
[1771190121372,0.27404,68760.0,68751.0,0.13224376]
[1771190121784,0.27404,68760.0,68751.0,0.00029341]
[1771190122132,0.04704905,68759.0,68744.0,0.0002]
[1771190122331,0.50851606,68754.0,68744.0,0.00032868]
[1771190122541,0.27476,68753.0,68744.0,0.00032868]
[1771190125252,0.27476,68753.0,68740.0,0.13195035]
[1771190125583,0.50851606,68750.0,68740.0,0.13207899]
[1771190125782,0.50851606,68750.0,68730.0,0.50851606]
[1771190126012,0.50851606,68750.0,68732.0,0.13195035]
[1771190126943,0.50851606,68742.0,68732.0,0.13195035]
[1771190127149,0.78431606,68742.0,68732.0,0.13195035]
[1771190127359,0.78431606,68742.0,68730.0,0.00012871]
[1771190129614,0.78431606,68742.0,68737.0,0.0002]
[1771190129818,0.2758,68742.0,68737.0,0.0002]
[1771190130266,0.50851606,68740.0,68730.0,0.00032871]
[1771190132237,0.50851606,68740.0,68730.0,0.13227906]
[1771190135208,0.50851606,68740.0,68730.0,0.00032871]
[1771190139081,0.50851606,68740.0,68723.0,0.0002]
[1771190139082,0.04704905,68739.0,68723.0,0.0002]
[1771190139288,0.50851606,68733.0,68723.0,0.10096867]
[1771190139463,0.2776,68733.0,68723.0,0.10096867]
[1771190139883,0.78611606,68733.0,68723.0,0.10096867]
[1771190140350,0.78611606,68733.0,68723.0,0.00062928]
[1771190140558,0.2776,68733.0,68723.0,0.00062928]
[1771190140765,0.27788,68738.0,68728.0,0.10033939]
[1771190140975,0.27788,68738.0,68730.0,0.10033939]
[1771190142376,0.27788,68738.0,68730.0,2e-08]
[1771190142610,0.27788,68738.0,68725.0,0.0501697]
[1771190142755,0.27788,68738.0,68726.0,0.0501697]
[1771190149218,0.50851606,68736.0,68726.0,0.0501697]
[1771190149635,0.50851606,68736.0,68723.0,0.00062928]
[1771190149834,0.50851606,68733.0,68723.0,0.00062928]
[1771190150376,0.27896,68732.0,68723.0,0.00062928]
[1771190150961,0.27896,68732.0,68726.0,0.0002]
[1771190154473,0.27896,68732.0,68723.0,0.00062928]
[1771190156630,0.27896,68732.0,68720.0,0.0002594]
[1771190156857,0.50851606,68730.0,68720.0,0.0002594]
[1771190157065,0.02278771,68727.0,68712.0,0.0002]
[1771190157244,0.02278771,68725.0,68712.0,0.0002]
[1771190157455,0.02278771,68724.0,68712.0,0.0002]
[1771190157821,0.02278771,68724.0,68709.0,0.02477398]
[1771190158393,0.06614045,68724.0,68723.0,0.0002]
[1771190158541,0.02278771,68723.0,68709.0,0.02477398]
[1771190158743,0.02278771,68723.0,68709.0,0.02468398]
[1771190158952,0.0932,68723.0,68709.0,0.02468398]
[1771190159155,0.50851606,68728.0,68701.0,0.05634235]
[1771190159156,0.1162007,68731.0,68713.0,0.04295248]
[1771190159358,0.1162007,68731.0,68701.0,0.05634235]
[1771190159359,0.2808,68730.0,68723.0,0.04295248]
[1771190159695,0.2808,68730.0,68720.0,0.50851606]
[1771190159696,0.16570219,68730.0,68722.0,0.02477398]
[1771190163413,0.0932,68736.0,68722.0,0.02477398]
[1771190163614,0.0004,68740.0,68722.0,0.02477398]
[1771190163615,0.0004,68740.0,68726.0,0.53329004]
[1771190163828,0.13036,68738.0,68730.0,0.53329004]
[1771190164032,0.13036,68738.0,68730.0,0.02477398]
[1771190164855,0.13036,68738.0,68728.0,0.50851606]
[1771190165694,0.0004,68732.0,68728.0,0.50851606]
[1771190165899,0.0004,68732.0,68722.0,0.50914454]
[1771190166074,0.0004,68732.0,68723.0,0.04295248]
[1771190170166,0.03863355,68738.0,68723.0,0.04295248]
[1771190170546,0.0004,68740.0,68729.0,0.04295248]
[1771190170767,0.0004,68740.0,68723.0,0.30084]
[1771190170768,0.0004,68740.0,68731.0,0.04295248]
[1771190170977,0.0004,68747.0,68736.0,0.50851606]
[1771190172417,0.0004,68747.0,68736.0,0.55146854]
[1771190173915,0.0004,68740.0,68737.0,0.0455265]
[1771190174953,0.0002382,68753.0,68744.0,0.0455265]
[1771190175522,0.50851606,68770.0,68744.0,0.0455265]
[1771190175523,0.0004,68760.0,68744.0,0.0455265]
[1771190175929,0.0004,68760.0,68750.0,0.50851606]
[1771190176207,0.00052852,68760.0,68750.0,0.50851606]
[1771190176623,0.06235848,68768.0,68752.0,0.0455265]
[1771190176829,0.04525694,68775.0,68752.0,0.0455265]
[1771190176830,0.06235848,68772.0,68758.0,0.0455265]
[1771190177039,0.04549514,68780.0,68758.0,0.0455265]
[1771190177040,0.06235848,68777.0,68758.0,0.0455265]
[1771190177453,0.07270009,68776.0,68752.0,0.00012852]
[1771190177666,0.07269813,68778.0,68752.0,0.00012852]
[1771190177667,0.06235848,68761.0,68752.0,0.00012852]
[1771190177876,0.04525694,68758.0,68742.0,0.30168]
[1771190178087,0.06235848,68756.0,68742.0,0.30168]
[1771190178700,0.00012864,68758.0,68746.0,0.50851606]
[1771190179573,0.07002,68766.0,68754.0,0.50851606]
[1771190180013,0.07002,68766.0,68753.0,0.0455265]
[1771190180420,0.13237848,68766.0,68750.0,0.30184]
[1771190180624,0.13237848,68766.0,68750.0,0.30196864]
[1771190181085,0.13237848,68766.0,68750.0,0.87372544]
[1771190181894,0.0004,68756.0,68750.0,0.87372544]
[1771190182086,0.0004,68756.0,68750.0,0.30196864]
[1771190186880,0.0004,68756.0,68750.0,0.00012864]
[1771190187110,0.13910937,68756.0,68747.0,0.3024]
[1771190187338,0.13923801,68756.0,68747.0,0.3024]
[1771190187795,0.13870937,68754.0,68740.0,0.3024]
[1771190189527,0.13870937,68754.0,68750.0,0.0002]
[1771190190816,0.13870937,68754.0,68743.0,0.0002]
[1771190191025,0.00052864,68756.0,68743.0,0.0002]
[1771190191026,0.06993913,68757.0,68743.0,0.0008882]
[1771190191235,0.11519607,68757.0,68743.0,0.00101684]
[1771190193114,0.11519607,68757.0,68743.0,0.00084504]
[1771190193343,0.04525694,68756.0,68743.0,0.00084504]
[1771190193616,0.10432425,68755.0,68743.0,0.00084504]
[1771190197684,0.04525694,68754.0,68738.0,0.09316]
[1771190197896,0.04525694,68750.0,68738.0,0.09316]
[1771190198107,0.10432425,68748.0,68738.0,0.09316]
[1771190199778,0.10432425,68747.0,68738.0,0.09316]
[1771190200200,0.10423889,68747.0,68738.0,0.09316]
[1771190203160,0.10423889,68747.0,68737.0,0.20649032]
[1771190203570,0.17425889,68747.0,68737.0,0.20649032]
[1771190203903,0.10428157,68746.0,68737.0,0.20649032]
[1771190205659,0.10428157,68746.0,68738.0,0.0002]
[1771190218719,0.10428157,68746.0,68738.0,0.00012]
[1771190222491,0.00012864,68754.0,68739.0,0.07437318]
[1771190222698,0.00012864,68754.0,68738.0,0.00012]
[1771190222699,0.10428157,68753.0,68740.0,0.50859482]
[1771190222903,0.10428157,68752.0,68740.0,0.582968]
[1771190223962,0.10428157,68752.0,68738.0,0.00012]
[1771190224821,0.07002,68751.0,68738.0,0.00012]
[1771190225016,0.10428157,68750.0,68738.0,0.00012]
[1771190227876,0.10428157,68750.0,68740.0,0.50859482]
[1771190228402,0.10428157,68750.0,68740.0,0.582968]
[1771190229217,0.00012864,68754.0,68740.0,0.582968]
[1771190229218,0.00012864,68754.0,68741.0,0.07437318]
[1771190229425,0.00012864,68754.0,68745.0,0.07437318]
[1771190229628,0.00012864,68754.0,68747.0,0.07437318]
[1771190230255,0.10428157,68760.0,68747.0,0.07437318]
[1771190230462,0.10468157,68765.0,68748.0,0.50859482]
[1771190230666,0.10468157,68765.0,68749.0,0.07437318]
[1771190231590,0.10468157,68765.0,68753.0,0.07437318]
[1771190231794,0.10468157,68765.0,68754.0,0.30512]
[1771190233314,0.0004,68765.0,68755.0,0.07437318]
[1771190234616,0.0004,68766.0,68755.0,0.07437318]
[1771190234825,0.0004,68769.0,68756.0,0.30544]
[1771190235035,0.10468157,68769.0,68756.0,0.30544]
[1771190236131,0.10468157,68769.0,68757.0,0.06936937]
[1771190236364,0.10468157,68769.0,68756.0,0.30544]
[1771190236365,0.0004,68769.0,68759.0,0.50859482]
[1771190236590,0.0004,68769.0,68760.0,0.06936937]
[1771190237463,0.0004,68769.0,68756.0,0.37480937]
[1771190237667,0.0004,68769.0,68759.0,0.50859482]
[1771190237920,0.0004,68769.0,68760.0,0.06936937]
[1771190238973,0.0004,68769.0,68756.0,0.30544]
[1771190239198,0.0004,68769.0,68757.0,0.06936937]
[1771190240021,0.0004,68769.0,68756.0,0.30544]
[1771190240220,0.10428157,68768.0,68756.0,0.30544]
[1771190240649,0.0004,68769.0,68756.0,0.37480937]
[1771190241869,0.0004,68769.0,68759.0,0.57796419]
[1771190242000,0.0004,68783.0,68760.0,0.50859482]
[1771190242001,0.10428157,68778.0,68760.0,0.50859482]
[1771190242203,0.10428157,68778.0,68760.0,0.06936937]
[1771190242634,0.0004,68783.0,68760.0,0.06936937]
[1771190242838,0.0004,68783.0,68759.0,0.50859482]
[1771190242839,0.0004,68783.0,68771.0,0.06936937]
[1771190243189,0.0004,68783.0,68770.0,0.50859482]
[1771190243190,0.0004,68783.0,68772.0,0.37556937]
[1771190243838,0.0004,68783.0,68773.0,0.06936937]
[1771190244045,0.00052871,68783.0,68773.0,0.06936937]
[1771190245133,0.10428157,68782.0,68772.0,0.3062]
[1771190248222,0.10428157,68782.0,68772.0,0.2249411]
[1771190248616,0.10428157,68780.0,68772.0,0.2249411]
[1771190251243,0.07002,68781.0,68772.0,0.2249411]
[1771190251244,0.10428157,68778.0,68772.0,0.03731461]
[1771190251450,0.10428157,68778.0,68767.0,0.09316]
[1771190251657,0.10428157,68776.0,68760.0,0.68837913]
[1771190251888,0.10428157,68776.0,68760.0,0.50801913]
[1771190252789,0.10428157,68776.0,68766.0,0.5773885]
[1771190253686,0.10428157,68776.0,68766.0,0.50801913]
[1771190253899,0.10428157,68776.0,68767.0,0.06936937]
[1771190254070,0.10428157,68776.0,68772.0,0.0002]
[1771190254274,0.17430157,68781.0,68772.0,0.0002]
[1771190254499,0.10428157,68780.0,68772.0,0.0002]
[1771190255482,0.07002,68781.0,68772.0,0.06956937]
[1771190256866,0.10428157,68780.0,68772.0,0.0002]
[1771190260218,0.10428157,68780.0,68772.0,0.06956937]
[1771190260468,0.07002,68781.0,68772.0,0.06956937]
[1771190261177,0.00052871,68783.0,68772.0,0.06956937]
[1771190261419,0.0004,68780.0,68772.0,0.06956937]
[1771190263435,0.0004,68780.0,68772.0,0.06989137]
[1771190268389,0.10428157,68779.0,68772.0,0.06989137]
[1771190268798,0.10428157,68779.0,68772.0,0.000522]
[1771190276824,0.00052871,68783.0,68774.0,0.07066972]
[1771190284370,0.00052871,68783.0,68776.0,0.07066972]
[1771190286003,0.0004,68787.0,68778.0,0.07066972]
[1771190288815,0.25421617,68791.0,68778.0,0.07066972]
[1771190288816,0.0004,68793.0,68778.0,0.07066972]
[1771190289028,0.0004,68793.0,68784.0,0.07066972]
[1771190289241,0.0004,68793.0,68785.0,0.38206972]
[1771190289650,0.0004,68793.0,68786.0,0.07066972]
[1771190291259,0.0004,68787.0,68786.0,0.07066972]
[1771190296838,0.0004,68787.0,68785.0,0.3114]
[1771190297739,0.0004,68787.0,68786.0,0.000322]
[1771190298453,0.25461617,68793.0,68786.0,0.000322]
[1771190300443,0.0004,68793.0,68786.0,0.07123228]
[1771190302068,0.0004,68793.0,68786.0,0.07115728]
[1771190306738,0.0006479,68797.0,68786.0,0.07115728]
[1771190307626,0.25486407,68797.0,68786.0,0.07115728]
[1771190308907,0.25461617,68794.0,68786.0,0.07115728]
[1771190309321,0.0004,68800.0,68786.0,0.07115728]
[1771190309486,0.0004,68801.0,68791.0,0.07091028]
[1771190309687,0.0004,68801.0,68790.0,0.50777052]
[1771190309688,0.0004,68801.0,68793.0,0.07091028]
[1771190314169,0.25461617,68801.0,68793.0,0.07091028]
[1771190314646,0.25461617,68801.0,68792.0,0.14956346]
[1771190314854,0.25421617,68800.0,68786.0,0.000447]
[1771190315059,0.25421617,68799.0,68786.0,0.000447]
[1771190315264,0.25421617,68798.0,68786.0,0.000447]
[1771190315669,0.25421617,68798.0,68788.0,0.50777052]
[1771190316094,0.25445907,68798.0,68786.0,0.000447]
[1771190320143,0.25485907,68798.0,68786.0,0.000447]
[1771190320917,0.25421617,68797.0,68786.0,0.000447]
[1771190321116,0.25445907,68797.0,68786.0,0.000447]
[1771190321544,0.25421617,68796.0,68786.0,0.000447]
[1771190321921,0.32416696,68796.0,68786.0,0.000447]
[1771190322143,0.25421617,68795.0,68786.0,0.000447]
[1771190323171,0.25421617,68794.0,68786.0,0.000447]
[1771190324382,0.25445907,68794.0,68786.0,0.000447]
[1771190325448,0.25421617,68792.0,68786.0,0.000447]
[1771190326190,0.25445907,68792.0,68786.0,0.000447]
[1771190326826,0.25445907,68792.0,68786.0,0.00030121]